Cogmind - Beta 14 @@@ ROGUE MODE // 2024.09.20 @ 00:23:22 Player: Zaros426 Result: Destroyed by H-88 Terminator with KE Penetrator Performance ------------- Evolutions (8) 4000 Regions Visited (21) 4200 Robots Destroyed (262) 1310 Value Destroyed (16570) 16570 Prototype IDs (39) 780 Alien Tech Used (0) 0 Bonus (12029) 12029 TOTAL SCORE: 38889 Bonus ------- High Alert Combat Kills 4184 Follower Combat Kills 3273 Entered Garrisons 1400 Used RIF Installer 4000 Aligned with FarCom 300 Friendly Fire -1128 Cogmind --------- Core Integrity 0/1450 Matter 294/300 Energy 87/100 System Corruption 13% Temperature Cool (0) Movement Core (50) Location -2/Research Parts ------- > --- POWER (2) -------- (None) > --- PROPULSION (6) --- Improved Gyrokinetic Inverter > --- UTILITY (11) ----- Experimental Optical Array 0b10 Alert Chip Relay Coupler [Proto] (9) > --- WEAPON (4) ------- (None) > --- INVENTORY (5) ---- Micro Antimatter Reactor High-capacity Battery (76) Enhanced Nova Cannon Advanced Remote Datajack Improved Plasma Cutter Peak State ------------ > --- POWER ------------ Quantum Reactor Quantum Reactor > --- PROPULSION ------- Advanced Heavy Siege Treads Advanced Heavy Siege Treads Advanced Heavy Siege Treads > --- UTILITY ---------- Advanced Heat Sink High-capacity Storage Unit Experimental Optical Array 0b10 Alert Chip Advanced Target Analyzer Experimental Core Analyzer Advanced Phase Shifter Graphene Brace Improved Force Field Improved Hacking Suite Improved System Shield > --- WEAPON ----------- Heavy Machine Gun Heavy Machine Gun Heavy Machine Gun Advanced Remote Datajack > --- INVENTORY -------- Heavy Treads Biometal Heavy Treads High-capacity Battery Matter Compressor Improved Terrain Scanner Relay Coupler [Proto] Relay Coupler [Proto] Improved Dynamic Insulation System Long-range Tractor Beam Enhanced Nova Cannon Heavy Machine Gun Heavy Machine Gun Railgun Railgun Heavy Linear Accelerator Improved Plasma Cutter [Rating: 177] Favorites ----------- Power Reinforced Quantum Reactor Engine Improved Ion Engine Power Core Neutrino Core Reactor Reinforced Quantum Reactor Propulsion Light Treads Treads Light Treads Leg Enhanced Biometal Leg Hover Unit Gravmag System Flight Unit VTOL Module Utility High-capacity Storage Unit Device Improved Force Field Storage High-capacity Storage Unit Processor 0b10 Alert Chip Hackware Relay Coupler [Hunter] Protection Improved Light Armor Plating Weapon Light EM Pulse Cannon Energy Gun EM Pulse Gun Energy Cannon Light EM Pulse Cannon Ballistic Gun Heavy Machine Gun Ballistic Cannon Advanced Assault Cannon Launcher Smartbomb Launcher Special Weapon Remote Datajack Impact Weapon Impact Mace Build | -11 -10 -10 -10 -9 -8 -8 -8 -8 -7 -7 -6 -6 -5 -5 -4 -4 -4 -4 -3 -3 -2 ------- Run | Yrd Mat Min Exi Min Mat Gar Mat Gar Fac Gar Fac Gar Fac Gar Fac Was Fac Gar Res Gar Res Slots Evolved 16 | . . . . . 4 . . . 2 . 2 . 2 . 2 . . . 2 . 2 Power 1 | . . . . . . . . . . . . . . . 1 . . . . . . Propulsion 4 | . . . . . 2 . . . . . . . . . 1 . . . 1 . . Utility 9 | . . . . . . . . . 2 . 2 . 2 . . . . . 1 . 2 Weapon 2 | . . . . . 2 . . . . . . . . . . . . . . . . Parts Attached 437 | 6 12 3 3 . 6 26 16 6 29 27 5 25 31 52 29 17 8 37 22 36 41 Power 25 | 1 . . . . 1 2 3 . . 1 . . 3 4 2 2 . . . 1 5 Engine 9 | 1 . . . . . 2 3 . . 1 . . 1 1 . . . . . . . Core 8 | . . . . . 1 . . . . . . . 2 3 1 . . . . . 1 Reactor 8 | . . . . . . . . . . . . . . . 1 2 . . . 1 4 Propulsion 68 | 2 2 . . . 2 3 3 1 3 5 1 10 5 7 6 1 . 7 1 . 9 Treads 40 | 2 2 . . . 2 3 3 1 2 3 1 4 5 3 1 . . 5 1 . 2 Leg 17 | . . . . . . . . . . . . 5 . 4 5 1 . 2 . . . Wheel . | . . . . . . . . . . . . . . . . . . . . . . Hover 5 | . . . . . . . . . 1 2 . . . . . . . . . . 2 Flight 6 | . . . . . . . . . . . . 1 . . . . . . . . 5 Utility 148 | 1 2 . . . 1 2 3 1 10 8 3 2 11 15 14 9 2 15 12 17 20 Device 84 | . . . . . . . 1 1 3 . 2 . 3 8 12 8 2 11 8 12 13 Storage 5 | 1 1 . . . 1 . . . . . 1 . . . . . . . . . 1 Processor 16 | . 1 . . . . 1 . . 2 1 . . 4 4 . . . . 1 1 1 Hackware 34 | . . . . . . 1 2 . 3 5 . 2 2 1 2 . . 4 3 4 5 Protection 9 | . . . . . . . . . 2 2 . . 2 2 . 1 . . . . . Artifact . | . . . . . . . . . . . . . . . . . . . . . . Weapon 196 | 2 8 3 3 . 2 19 7 4 16 13 1 13 12 26 7 5 6 15 9 18 7 Energy Gun 2 | 1 1 . . . . . . . . . . . . . . . . . . . . Energy Cannon 18 | . 2 2 2 . 2 3 3 . . . . . . 2 . 1 1 . . . . Ballistic Gun 95 | 1 2 . . . . 4 1 4 8 4 1 7 5 18 3 3 3 7 5 14 5 Ballistic Cannon 26 | . . . . . . 6 1 . 2 5 . . 4 2 1 . 1 3 . . 1 Launcher 12 | . 1 . . . . 4 . . . 1 . 1 1 3 . . . 1 . . . Special Weapon 33 | . 1 . . . . 1 2 . 4 3 . 4 . . 3 1 1 4 4 4 1 Impact Weapon 10 | . 1 1 1 . . 1 . . 2 . . 1 2 1 . . . . . . . Slashing Weapon . | . . . . . . . . . . . . . . . . . . . . . . Piercing Weapon . | . . . . . . . . . . . . . . . . . . . . . . Special Melee Weapon . | . . . . . . . . . . . . . . . . . . . . . . Unidentified Prototypes 9 | . . . . . . . . . 1 . . . . 6 1 1 . . . . . Parts Lost 76 | . . . . . . 7 1 1 8 6 . 6 3 2 1 . 2 2 2 2 33 Power 7 | . . . . . . 1 1 . . 1 . 1 . . 1 . . . . . 2 Propulsion 22 | . . . . . . 3 . 1 2 3 . 1 . 1 . . . . . . 11 Utility 22 | . . . . . . . . . 2 . . 2 . 1 . . 1 1 1 2 12 Weapon 25 | . . . . . . 3 . . 4 2 . 2 3 . . . 1 1 1 . 8 Highest Loss Streak 28 | . . . . . . 4 1 1 5 3 . 3 2 1 1 . 2 1 1 1 28 To Critical Strikes 3 | . . . . . . 1 . . . 1 . . 1 . . . . . . . . Average Slot Usage (%) 91 | . 91 100 95 100 100 95 98 92 94 92 95 88 90 96 93 93 93 88 79 82 77 Engine 4 | . 14 14 14 14 1 5 8 9 7 6 6 5 1 . . . . . . . . Core 1 | . . . . . 7 3 . . . . . . 3 4 4 . . . . . . Reactor 2 | . . . . . . . . . . . . . . . 5 9 10 10 9 9 7 Treads 19 | . 28 28 28 28 36 33 36 29 24 20 24 20 22 16 4 . . 9 14 14 11 Leg 4 | . . . . . . . . . . . . 4 . 5 20 26 26 11 . . . Device 6 | . . . . . . . 2 7 5 1 8 4 4 6 8 5 10 14 19 19 14 Storage 6 | . 14 14 14 14 9 9 9 9 7 7 6 6 5 5 5 5 5 5 4 4 3 Processor 14 | . 6 14 14 14 9 7 3 . 6 8 6 6 17 25 26 26 25 21 15 15 16 Hackware 2 | . . . . . . . 3 1 1 5 6 6 10 5 1 4 . . 1 1 5 Protection 1 | . . . . . . . . . 6 3 6 3 2 1 . . . . . . . Energy Cannon 5 | . 5 27 11 28 36 10 10 20 13 . . . . 1 . 2 . . . . . Ballistic Gun 10 | . 6 . . . . 9 14 12 12 11 11 11 14 12 13 6 13 9 8 15 14 Ballistic Cannon 3 | . . . . . . 11 8 . . 14 13 12 1 2 . 1 . 4 4 1 . Special Weapon 1 | . 3 . . . . . 2 2 1 1 1 . . . 1 4 . . . . . Peak Build Rating 177 | 6 13 13 15 15 23 32 34 28 48 49 58 59 82 125 147 154 154 152 171 175 177 Average Rating 78 | 5 8 13 13 15 22 25 29 26 36 44 54 52 71 91 140 146 152 142 165 166 157 On Entrance 67 | . 6 13 13 15 15 23 31 28 28 29 47 58 44 82 125 142 154 149 149 169 164 Naked Turns . | . . . . . . . . . . . . . . . . . . . . . . Heaviest Build 163 | 13 33 33 33 33 63 72 65 65 76 75 75 76 89 93 119 143 163 156 158 161 137 Greatest Support 240 | 40 46 46 46 46 86 86 86 83 83 60 90 90 96 96 140 145 145 190 240 240 240 Greatest Overweight (x) 4 | . . . . . . 1 . 1 1 2 1 4 1 2 1 . 1 1 . . 1 Average Overweight (x) . | . . . . . . . . . . . . . . . . . . . . . . Largest Inventory Capacity 20 | 8 15 15 15 15 20 20 20 20 20 20 20 20 20 20 20 20 20 20 20 20 20 Average Capacity 18 | 7 10 15 15 15 18 20 20 20 20 20 20 20 20 20 20 20 20 20 20 20 18 Most Carried 20 | 4 15 15 15 15 15 20 20 20 20 20 20 20 20 20 20 20 20 20 20 20 20 Average Carried 17 | 1 8 14 14 15 13 17 19 19 19 18 19 19 19 19 19 19 19 19 16 19 18 Final Capacity 20 | 8 15 15 15 15 20 20 20 20 20 20 20 20 20 20 20 20 20 20 20 20 5 Final Carried 20 | 4 14 15 15 15 15 20 20 20 16 20 19 20 20 20 20 20 20 20 15 20 5 Class Distribution -------------------- 32% | Scavenger-Gunner 14% | Mutant 13% | Bothacker-Tank 6% | Bothacker-Gunner 6% | Skirmisher 5% | Bothacker-Skirmisher 5% | Scavenger-Skirmisher 5% | Scavenger-Tank 4% | Botlord-Gunner Dominant Class ---------------- Mutant | -10/Materials Mutant | -10/Mines Mutant | -10/Exiles Mutant | -9/Mines Skirmisher | -8/Materials Skirmisher | -8/Garrison Bothacker-Skirmisher | -8/Materials Bothacker-Skirmisher | -8/Garrison Bothacker-Tank | -7/Factory Bothacker-Gunner | -7/Garrison Bothacker-Tank | -6/Factory Bothacker-Tank | -6/Garrison Scavenger-Gunner | -5/Factory Scavenger-Gunner | -5/Garrison Scavenger-Gunner | -4/Factory Scavenger-Gunner | -4/Waste Scavenger-Gunner | -4/Factory Botlord-Gunner | -4/Garrison Commander-Tank | -3/Research Bothacker-Tank | -3/Garrison Scavenger-Gunner | -2/Research Resources | -11 -10 -10 -10 -9 -8 -8 -8 -8 -7 -7 -6 -6 -5 -5 -4 -4 -4 -4 -3 -3 -2 ----------- Run | Yrd Mat Min Exi Min Mat Gar Mat Gar Fac Gar Fac Gar Fac Gar Fac Was Fac Gar Res Gar Res Matter Collected 12768 | 269 167 232 . 43 70 817 303 161 671 712 . 960 1009 1434 675 168 347 1094 798 1398 1440 Remotely 1448 | . . . . . . . . . . . . . . . . . . 332 467 . 649 Salvage Created 11912 | 126 212 200 . 134 625 960 126 83 889 526 . 249 755 1224 1426 467 505 734 644 856 1171 Parts 580 | 10 11 10 . 10 27 47 16 6 41 33 . 13 28 51 81 . 14 22 42 47 71 Haulers Intercepted 9 | . 1 . . . 3 . 1 . 1 . . . 1 . . . 2 . . . . Recyclers Shooed 4 | . . . . . . . 1 . . . . . . . 2 . 1 . . . . Parts Field Recycled . | . . . . . . . . . . . . . . . . . . . . . . Retrieved Matter . | . . . . . . . . . . . . . . . . . . . . . . Parts Self-Destructed . | . . . . . . . . . . . . . . . . . . . . . . Prevented . | . . . . . . . . . . . . . . . . . . . . . . Kills | -11 -10 -10 -10 -9 -8 -8 -8 -8 -7 -7 -6 -6 -5 -5 -4 -4 -4 -4 -3 -3 -2 ------- Run | Yrd Mat Min Exi Min Mat Gar Mat Gar Fac Gar Fac Gar Fac Gar Fac Was Fac Gar Res Gar Res Combat Hostiles Destroyed 222 | . 5 4 . 2 8 25 2 2 18 17 . 10 14 28 19 2 4 14 10 19 19 Melee 3 | . . . . . . . . . 3 . . . . . . . . . . . . Guns 117 | . 2 . . . . 6 1 . 8 2 . 9 8 11 19 1 4 5 9 13 19 Cannons 56 | . . 4 . 2 4 11 1 2 5 10 . 1 . 3 . 1 . 5 1 6 . AOE 40 | . 3 . . . 2 8 . . 1 5 . . 5 13 . . . 3 . . . Classes Destroyed 25 | 2 5 . . 1 1 3 1 1 2 . . . 1 2 3 1 1 . . . 1 Worker 7 | . 1 . . . . . . . 3 . . . . . 1 . 2 . . . . Builder 7 | . . . . 1 . . . . 1 . . . 1 . 3 . . . 1 . . Tunneler 3 | 2 . . . 1 . . . . . . . . . . . . . . . . . Hauler 9 | . 1 . . . 3 . 1 . 1 . . . 1 . . . 2 . . . . Recycler 3 | 1 . . . . . . . . . . . . 1 . . . 1 . . . . Mechanic 1 | . . . . . . . . . . . . . . . . . . . 1 . . Operator 2 | . . . . . . . 1 . . . . . . . . . . . . . 1 Watcher 10 | . 2 . . . 2 . . . 2 . . . . . 1 . . 1 1 . 1 Swarmer 44 | . 3 . . . . 10 1 . . 3 . 5 5 . . . 4 1 2 10 . Cutter 6 | . . . . . . . . 1 . . . . . . . . . 1 . . 4 Saboteur 1 | . . . . . . . . . . . . . . . . . . . . . 1 Grunt 93 | . 2 4 . 2 7 8 . . 6 9 . 3 1 21 8 . . 11 4 3 4 Brawler 1 | . . . . . . . . . . . . . 1 . . . . . . . . Duelist 5 | . . . . . 1 . . . 1 1 . . . . 2 . . . . . . Protector 1 | . . . . . . . . . . . . . . . 1 . . . . . . Sentry 24 | . . . . . . 5 1 1 2 1 . . 5 3 1 . . . 3 2 . Demolisher 1 | . . . . . . . . . 1 . . . . . . . . . . . . Specialist 3 | . . . . . . . . . . . . . . . 2 . . . . . 1 Hunter 13 | . . . . . . 1 . . 1 . . 1 1 1 2 . . 1 . 2 3 Programmer 18 | . . . . . . 1 . . 2 3 . 1 1 . 2 . . . 1 1 6 Heavy 1 | . . . . . . . . . . . . . . . 1 . . . . . . Behemoth 2 | . . . . . . . . . . . . . . 1 . . . . . 1 . Compactor 2 | . . . . . . . . . . . . . . . . 2 . . . . . Executioner 2 | . . . . . . . . . . . . . . 2 . . . . . . . Assembled 6 | . . . . . . . . . 6 . . . . . . . . . . . . Surgeon 1 | . . . . . . . . . . . . . . . . . 1 . . . . Wasp 1 | . . . . . . . . . . . . . . . . . 1 . . . . Thug 1 | . . . . . . . . . . . . . . . . . . 1 . . . Best Kill Streak 9 | 3 4 2 . 2 5 4 1 1 4 9 . 3 5 8 6 1 4 5 8 3 8 Combat Bots Only 9 | . 3 2 . 2 5 4 1 1 4 9 . 3 5 8 5 1 4 5 8 3 7 Max Kills in Single Turn 4 | 1 2 1 . 1 2 4 1 1 2 2 . 2 4 3 1 1 2 3 3 2 2 Gunslinging 1 | . . . . . . . . . . . . . . . . . . . . 1 1 Exploded 4 | . 2 . . . 1 4 . . 1 2 . . 4 3 . . . 3 . . . Melee 1 | . . . . . . . . . 1 . . . . . . . . . . . . Uniques/NPCs Destroyed . | . . . . . . . . . . . . . . . . . . . . . . Combat | -11 -10 -10 -10 -9 -8 -8 -8 -8 -7 -7 -6 -6 -5 -5 -4 -4 -4 -4 -3 -3 -2 -------- Run | Yrd Mat Min Exi Min Mat Gar Mat Gar Fac Gar Fac Gar Fac Gar Fac Was Fac Gar Res Gar Res Hostile Shots Fired 1564 | . 14 5 . . 17 137 13 7 167 120 . 114 59 64 77 . 10 140 101 146 373 Missed 504 | . 4 1 . . 3 39 3 3 63 47 . 42 14 20 22 . 2 48 38 50 105 Damage Taken 18927 | . 105 150 . . 204 1574 102 134 1279 854 . 1103 866 955 801 22 458 1120 996 1184 7020 Core 2551 | . 8 . . . 31 210 . 51 70 155 . 50 116 252 10 . 9 78 33 15 1463 Absorbed by Shields 3517 | . . . . . . 17 . . . 12 . . 82 237 434 . 108 766 425 879 557 Reduced by Siege Mode 1172 | . . . . . . . . . . . . . . . . . . . 176 258 738 Regen/Repaired (Parts) 979 | . . . . . . . . . 198 . . . . . . 564 217 . . . . Core Remaining (%) 81 | 100 . . . 96 . . . 46 . 67 . 94 . 63 . . . 91 . 96 . Volleys Fired 784 | 9 46 9 . 4 17 81 15 16 58 57 1 46 37 72 50 4 28 55 37 91 51 Largest 4 | 2 2 2 . 2 4 4 4 4 4 4 1 4 4 4 2 2 3 3 3 4 4 Hottest 225 | 60 112 112 . 112 224 225 196 168 169 172 48 152 137 211 73 121 156 153 151 151 125 Shots Fired 1797 | 15 67 18 . 9 49 162 23 26 129 97 1 89 96 189 165 7 74 112 77 207 185 Gun 1195 | 15 45 . . . . 54 11 8 78 23 . 42 75 130 160 3 72 81 42 174 182 Cannon 470 | . 6 18 . 9 49 100 6 10 43 58 1 40 19 44 . 1 1 25 20 20 . Launcher 33 | . 2 . . . . 6 . . . 6 . 1 2 15 . . . 1 . . . Special 99 | . 14 . . . . 2 6 8 8 10 . 6 . . 5 3 1 5 15 13 3 Kinetic 1450 | 9 22 . . . . 125 14 8 86 81 1 82 94 147 160 4 73 106 62 194 182 Thermal 41 | . 14 . . . . . . . . . . . . 27 . . . . . . . Explosive 33 | . 2 . . . . 6 . . . 6 . 1 2 15 . . . 1 . . . Electromagnetic 188 | 6 29 18 . 9 49 29 3 10 35 . . . . . . . . . . . . Robot Hit Streak 35 | 4 11 7 . 8 6 14 7 4 10 11 . 8 26 35 21 6 14 8 17 24 23 Robot Miss Streak 11 | 4 3 1 . 1 3 3 2 4 3 5 . 11 4 3 3 1 2 4 2 4 2 Penetration Max 1 | . . . . . . 1 . . 1 . . 1 . 1 1 . 1 1 1 1 . Secondary Targets 15 | . . . . . . . . . 1 . . 1 . 1 1 . . . . 3 8 Max Gunslinging Chain 1 | . . . . . . . . . 1 . . 1 . 1 1 . . . . 1 1 Autonomous 155 | . . . . . . . . . 1 . . . 17 18 89 2 20 8 . . . Shots Hit Robots 1110 | 7 37 14 . 7 29 104 13 7 88 46 . 42 72 119 120 5 50 58 51 106 135 Core Hits 599 | 7 14 7 . 4 16 37 5 3 39 34 . 46 71 70 63 2 22 35 24 43 57 Critical Kills 18 | . . . . . . 4 1 . 1 . . . 2 2 2 . . . 1 1 4 Critical Parts Destroyed 30 | . . . . . . 9 . . 5 . . . 3 6 . . 1 . 1 . 5 Critical Strikes 54 | . . 1 . . . 14 1 . 7 . . . 5 9 2 . 1 . 3 2 9 Meltdown 1 | . . . . . . . . . . . . . . 1 . . . . . . . Destroy 45 | . . . . . . 12 1 . 4 . . . 5 8 2 . 1 . 2 1 9 Blast 3 | . . . . . . 1 . . . . . . . . . . . . 1 1 . Corrupt 2 | . . 1 . . . . . . 1 . . . . . . . . . . . . Smash 3 | . . . . . . 1 . . 2 . . . . . . . . . . . . Melee Attacks 47 | . 9 4 . . . 12 . . 7 . . 4 4 7 . . . . . . . Impact 47 | . 9 4 . . . 12 . . 7 . . 4 4 7 . . . . . . . Slashing . | . . . . . . . . . . . . . . . . . . . . . . Piercing . | . . . . . . . . . . . . . . . . . . . . . . Sneak Attacks . | . . . . . . . . . . . . . . . . . . . . . . Combat Hostiles . | . . . . . . . . . . . . . . . . . . . . . . Follow-up Attacks . | . . . . . . . . . . . . . . . . . . . . . . Damage Inflicted 32955 | 114 642 335 . 182 1034 2794 170 87 2403 1324 . 765 2170 5118 3677 124 2071 2362 1520 2973 3090 Guns 18507 | 114 344 . . . . 608 108 49 1131 253 . 633 1273 1819 3677 51 1504 1123 794 1964 3062 Cannons 7559 | . 148 296 . 135 856 1065 62 38 558 483 . 132 360 794 . 73 . 824 726 1009 . Explosions 5742 | . 150 39 . 47 178 494 . . 269 588 . . 490 2505 . . 567 415 . . . Melee 1119 | . . . . . . 627 . . 445 . . . 47 . . . . . . . . Ramming 28 | . . . . . . . . . . . . . . . . . . . . . 28 Kinetic 22740 | 48 154 . . . . 1281 134 49 1180 736 . 765 1633 1953 3677 124 1504 1947 1520 2973 3062 Thermal 1622 | . . 39 . 47 178 64 . . 166 . . . . 660 . . 468 . . . . Explosive 4780 | . 150 . . . . 430 . . 103 588 . . 490 2505 . . 99 415 . . . Electromagnetic 2666 | 66 338 296 . 135 856 392 36 38 509 . . . . . . . . . . . . Impact 1119 | . . . . . . 627 . . 445 . . . 47 . . . . . . . . Slashing . | . . . . . . . . . . . . . . . . . . . . . . Piercing . | . . . . . . . . . . . . . . . . . . . . . . Highest Corruption 13 | . 1 1 1 1 . . . . 5 2 . 3 3 3 . . . . 2 3 13 Average Corruption 2 | . 1 1 1 1 . . . . 3 1 . 2 3 3 . . . . 1 2 7 Corruption Purged 5 | . . . . . . . . . 5 . . . . . . . . . . . . Corruption Blocked . | . . . . . . . . . . . . . . . . . . . . . . Effects 132 | . 8 4 4 5 . . . . 8 16 . 1 20 35 . . . . 1 12 18 Message Errors 31 | . 2 1 2 1 . . . . 2 5 . . 4 8 . . . . . 4 2 Matter Fused 24 | . 1 1 2 . . . . . 3 3 . . 3 3 . . . . . 4 4 Heat Flow Errors 19 | . 3 . . 1 . . . . 1 2 . 1 3 4 . . . . 1 . 3 Energy Discharges 13 | . 1 1 . 1 . . . . . 2 . . 2 5 . . . . . . 1 Parts Rejected 3 | . . . . . . . . . . . . . . 1 . . . . . 2 . Parts Fused 2 | . . . . . . . . . . 1 . . . 1 . . . . . . . Data Loss (minor) 17 | . 1 1 . 1 . . . . . 1 . . 3 6 . . . . . 1 3 Data Loss (major) 4 | . . . . . . . . . . . . . 3 1 . . . . . . . Misfires 6 | . . . . 1 . . . . . 1 . . 2 1 . . . . . . 1 Alerts 3 | . . . . . . . . . . . . . . 2 . . . . . 1 . Misdirections 2 | . . . . . . . . . . . . . . . . . . . . . 2 Weapon Failures 8 | . . . . . . . . . 2 1 . . . 3 . . . . . . 2 Overload Shots . | . . . . . . . . . . . . . . . . . . . . . . Overflow Damage 1027 | . 16 33 . . 3 128 . . 253 55 . 30 43 80 . . 91 151 51 93 . Projectiles 317 | . 16 . . . 3 . . . 18 6 . . . . . . . 130 51 93 . Explosions 370 | . . 33 . . . 25 . . 10 49 . 30 31 80 . . 91 21 . . . Melee 340 | . . . . . . 103 . . 225 . . . 12 . . . . . . . . Knockbacks 24 | . . . . . . 2 1 . 5 2 . . 1 2 . . . 5 4 2 . Impact 2 | . . . . . . . . . 2 . . . . . . . . . . . . Kinetic 20 | . . . . . . 2 1 . 2 2 . . 1 2 . . . 4 4 2 . Secondary 2 | . . . . . . . . . 1 . . . . . . . . 1 . . . Self-Inflicted Damage 477 | . . . . . . 41 . . 20 . . 41 . 4 . . 358 . . . 13 Shots 10 | . . . . . . 1 . . 1 . . 1 . 1 . . 6 . . . . Rammed 4 | . . . . . . . . . . . . . . . . . . . . . 4 Targets Rammed 4 | . . . . . . . . . . . . . . . . . . . . . 4 Kicked . | . . . . . . . . . . . . . . . . . . . . . . Crushed . | . . . . . . . . . . . . . . . . . . . . . . Highest Temperature 478 | 40 156 204 . 117 227 478 66 27 244 263 . 220 233 311 71 75 203 335 329 255 141 Average Temperature 71 | 19 36 75 . 40 97 100 28 13 63 64 . 81 42 95 24 38 83 107 71 39 42 Received Heat Transfer 2595 | . 39 12 . . 126 553 18 . 410 222 . 162 189 134 104 . 12 360 109 90 55 Effects 11 | . . . . . . 1 . . . . . . . 3 . . . 4 3 . . Shutdowns 1 | . . . . . . . . . . . . . . . . . . . 1 . . Energy Bleed 3 | . . . . . . . . . . . . . . . . . . 1 2 . . Interference 6 | . . . . . . 1 . . . . . . . 2 . . . 3 . . . Short Circuit 1 | . . . . . . . . . . . . . . 1 . . . . . . . Siege Activations 16 | . . . . . . . . . . . . . . . . . . 3 1 8 4 Total Turns 328 | . . . . . . . . . . . . . . . . . . 18 75 129 106 Longest Duration 75 | . . . . . . . . . . . . . . . . . . 6 75 27 39 Robots Corrupted 9 | . . . . . 3 2 . . 2 . . . 1 . . . . 1 . . . Combat Hostiles 6 | . . . . . 2 . . . 2 . . . 1 . . . . 1 . . . Parts Fried 18 | . . . . 1 8 1 . . 3 . . . 2 . . . . 3 . . . Impact Corruptions 14 | . . . . . . 4 . . 7 . . . 2 . . . . 1 . . . Robots Melted 1 | . . . . . . . . . . . . . . 1 . . . . . . . Combat Hostiles 1 | . . . . . . . . . . . . . . 1 . . . . . . . Parts Melted 3 | . . . . . . . . . . . . . . 1 . . . . . 1 1 Heat Transferred 1579 | . . 50 . . 200 100 . . 150 . . . . 629 . . 450 . . . . Parts Sabotaged . | . . . . . . . . . . . . . . . . . . . . . . Parts Stolen . | . . . . . . . . . . . . . . . . . . . . . . Parts Stripped . | . . . . . . . . . . . . . . . . . . . . . . Power Chain Reactions 9 | . . 1 . 1 2 2 . . 3 . . . . . . . . . . . . Alert | -11 -10 -10 -10 -9 -8 -8 -8 -8 -7 -7 -6 -6 -5 -5 -4 -4 -4 -4 -3 -3 -2 ------- Run | Yrd Mat Min Exi Min Mat Gar Mat Gar Fac Gar Fac Gar Fac Gar Fac Was Fac Gar Res Gar Res Peak Influence 1768 | 15 146 165 . 67 189 980 581 424 405 925 486 920 543 1386 1236 438 992 1542 1223 1768 1007 Initial 994 | . 9 16 . . . 30 477 247 222 269 485 340 477 273 727 432 166 683 867 909 994 Average 587 | 7 54 105 . 14 30 510 402 331 121 561 485 631 406 882 864 355 702 1082 1104 1334 740 Maximum Alert Level 5 | . . . . . . 3 2 2 2 3 2 3 2 4 4 2 3 4 4 5 3 Low Security (%) 23 | 100 100 100 . 100 100 20 . . 71 . . . . . . . 1 . . . . Level 1 15 | . . . . . . 8 69 73 27 35 . 8 49 8 . 40 15 . . . . Level 2 22 | . . . . . . 40 30 26 . 29 100 57 50 26 . 59 26 9 . . 39 Level 3 23 | . . . . . . 30 . . . 35 . 33 . 25 88 . 57 49 41 18 59 Level 4 13 | . . . . . . . . . . . . . . 39 11 . . 41 58 61 . Level 5 1 | . . . . . . . . . . . . . . . . . . . . 19 . High Security . | . . . . . . . . . . . . . . . . . . . . . . Max Security . | . . . . . . . . . . . . . . . . . . . . . . Squads Dispatched 38 | . 1 1 . . 1 . 2 . 8 . . . 5 . 5 . 2 . 4 . 9 Investigation 4 | . 1 1 . . . . . . 1 . . . 1 . . . . . . . . Extermination 9 | . . . . . . . . . 3 . . . 1 . 1 . 1 . 1 . 2 Reinforcement 9 | . . . . . . . . . 1 . . . . . 2 . 1 . . . 5 Assault 4 | . . . . . . . . . . . . . . . 2 . . . . . 2 Garrison 12 | . . . . . 1 . 2 . 3 . . . 3 . . . . . 3 . . Intercept . | . . . . . . . . . . . . . . . . . . . . . . Searches Triggered . | . . . . . . . . . . . . . . . . . . . . . . Construction Impeded . | . . . . . . . . . . . . . . . . . . . . . . Haulers Reinforced 2 | . . . . . . . . . . . . . . . . . 1 . . . 1 Active Scanning Responses . | . . . . . . . . . . . . . . . . . . . . . . Cargo Convoy Interrupts 1 | . . . . . . . . . 1 . . . . . . . . . . . . Stealth | -11 -10 -10 -10 -9 -8 -8 -8 -8 -7 -7 -6 -6 -5 -5 -4 -4 -4 -4 -3 -3 -2 --------- Run | Yrd Mat Min Exi Min Mat Gar Mat Gar Fac Gar Fac Gar Fac Gar Fac Was Fac Gar Res Gar Res Distress Signals 7 | . . . . . 3 . 1 . 1 . . . . . . . . . 1 . 1 Communications Jammed 48 | . . . . . . . . . . . . . . . 21 . 1 9 17 . . Distress Signals 48 | . . . . . . . . . . . . . . . 21 . 1 9 17 . . Times Spotted 401 | . 11 7 . 2 10 28 8 5 46 27 3 25 19 31 31 3 12 37 25 36 35 Peak Tracking Total 10 | . 3 3 . 2 4 4 3 3 7 5 1 5 5 5 6 1 5 8 5 9 10 Tactical Retreats 16 | . . . . . . 5 . . 4 . . . 1 1 . . . 1 1 1 2 Traps | -11 -10 -10 -10 -9 -8 -8 -8 -8 -7 -7 -6 -6 -5 -5 -4 -4 -4 -4 -3 -3 -2 ------- Run | Yrd Mat Min Exi Min Mat Gar Mat Gar Fac Gar Fac Gar Fac Gar Fac Was Fac Gar Res Gar Res Traps Triggered 34 | . 2 . . . . 3 . 1 1 5 . 3 2 4 1 . . 8 . 3 1 Indirectly . | . . . . . . . . . . . . . . . . . . . . . . Trap Hack Attempts . | . . . . . . . . . . . . . . . . . . . . . . Triggered . | . . . . . . . . . . . . . . . . . . . . . . Disarmed . | . . . . . . . . . . . . . . . . . . . . . . Reprogrammed . | . . . . . . . . . . . . . . . . . . . . . . Reused . | . . . . . . . . . . . . . . . . . . . . . . Traps Extracted . | . . . . . . . . . . . . . . . . . . . . . . Installed . | . . . . . . . . . . . . . . . . . . . . . . Triggered 2 | . . . . . . 1 . . 1 . . . . . . . . . . . . Machines | -11 -10 -10 -10 -9 -8 -8 -8 -8 -7 -7 -6 -6 -5 -5 -4 -4 -4 -4 -3 -3 -2 ---------- Run | Yrd Mat Min Exi Min Mat Gar Mat Gar Fac Gar Fac Gar Fac Gar Fac Was Fac Gar Res Gar Res Machines Disabled 64 | . 1 . . . . 4 1 2 6 6 . 3 1 10 2 . 16 4 1 7 . Max in Single Turn 7 | . 1 . . . . 1 1 1 2 1 . 1 1 2 1 . 7 1 . 2 . Garrison Relay 22 | . . . . . . 3 . 2 . 3 . 3 . 4 . . . 3 . 4 . Phase Generator 1 | . . . . . . . . . . . . . . 1 . . . . . . . Machines Repaired . | . . . . . . . . . . . . . . . . . . . . . . Machines Dismantled . | . . . . . . . . . . . . . . . . . . . . . . Machines Sabotaged . | . . . . . . . . . . . . . . . . . . . . . . Overloaded Fab Kills . | . . . . . . . . . . . . . . . . . . . . . . Hacking | -11 -10 -10 -10 -9 -8 -8 -8 -8 -7 -7 -6 -6 -5 -5 -4 -4 -4 -4 -3 -3 -2 --------- Run | Yrd Mat Min Exi Min Mat Gar Mat Gar Fac Gar Fac Gar Fac Gar Fac Was Fac Gar Res Gar Res Machines Accessed 55 | . 7 1 3 . 2 2 2 2 6 2 3 1 6 2 3 . 2 2 2 4 3 Terminals 29 | . 6 . . . 1 2 1 2 . 2 . 1 2 2 . . . 2 1 4 3 Fabricators 5 | . . . . . . . . . 1 . 1 . 1 . 1 . 1 . . . . Repair Stations 4 | . . . . . . . . . 3 . . . . . 1 . . . . . . Recycling Units 1 | . 1 . . . . . . . . . . . . . . . . . . . . Scanalyzers 4 | . . . . . . . . . 1 . 1 . 1 . 1 . . . . . . Garrison Access 8 | . . . . . 1 . 1 . 1 . 1 . 2 . . . 1 . 1 . . Total Hacks 138 | . 17 1 33 . 3 3 3 2 14 5 5 1 15 4 7 . 5 3 6 6 5 Successful 87 | . 10 1 33 . 1 1 3 2 8 1 2 1 5 1 3 . 3 2 3 4 3 Failed 51 | . 7 . . . 2 2 . . 6 4 3 . 10 3 4 . 2 1 3 2 2 Catastrophic 7 | . 1 . . . . . . . . . 1 . 2 1 1 . . . . 1 . Database Lockouts . | . . . . . . . . . . . . . . . . . . . . . . Manual 41 | . 16 . 1 . 2 . 2 . 1 . . . 10 . 6 . . . 2 1 . Terminals 58 | . 16 . . . 2 3 1 2 . 5 . 1 6 4 . . . 3 4 6 5 Fabricators 15 | . . . . . . . . . 3 . 2 . 2 . 5 . 3 . . . . Repair Stations 7 | . . . . . . . . . 6 . . . . . 1 . . . . . . Recycling Units 1 | . 1 . . . . . . . . . . . . . . . . . . . . Scanalyzers 6 | . . . . . . . . . 3 . 1 . 1 . 1 . . . . . . Garrison Access 17 | . . . . . 1 . 2 . 2 . 2 . 6 . . . 2 . 2 . . Terminal Hacks 55 | . 3 1 33 . . 1 1 2 . 1 . 1 1 1 . . . 2 1 4 3 Record 32 | . . . 32 . . . . . . . . . . . . . . . . . . Robot Analysis 1 | . 1 . . . . . . . . . . . . . . . . . . . . Prototype ID Bank 2 | . 1 . . . . . . . . . . . . . . . . . 1 . . Open Door 3 | . . 1 . . . . . . . . . . . 1 . . . . . 1 . Branch Access Points 1 | . . . . . . . . . . . . . . . . . . . . . 1 Emergency Access Points 5 | . . . . . . . . 1 . 1 . 1 . . . . . 1 . 1 . Unreport Threat 2 | . . . . . . . 1 . . . . . . . . . . . . . 1 Locate Traps 2 | . 1 . . . . . . . . . . . 1 . . . . . . . . Recall Reinforcements 1 | . . . . . . . . . . . . . . . . . . . . . 1 Garrison Registry 2 | . . . . . . . . . . . . . . . . . . 1 . 1 . Patrol Navigation 1 | . . . . . . . . . . . . . . . . . . . . 1 . Security Stations 2 | . . . . . . 1 . 1 . . . . . . . . . . . . . Derelict Proto ID Bank 1 | . . . 1 . . . . . . . . . . . . . . . . . . Fabricator Hacks 2 | . . . . . . . . . 1 . . . . . . . 1 . . . . Network Status 1 | . . . . . . . . . . . . . . . . . 1 . . . . Build 1 | . . . . . . . . . 1 . . . . . . . . . . . . Repair Station Hacks 2 | . . . . . . . . . 2 . . . . . . . . . . . . Scan Component 1 | . . . . . . . . . 1 . . . . . . . . . . . . Repair 1 | . . . . . . . . . 1 . . . . . . . . . . . . Recycling Unit Hacks . | . . . . . . . . . . . . . . . . . . . . . . Scanalyzer 2 | . . . . . . . . . 2 . . . . . . . . . . . . Insert Component 1 | . . . . . . . . . 1 . . . . . . . . . . . . Analyze 1 | . . . . . . . . . 1 . . . . . . . . . . . . Garrison Access Hacks 14 | . . . . . 1 . 2 . 2 . 2 . 3 . . . 2 . 2 . . Unlock Access 8 | . . . . . 1 . 1 . 1 . 1 . 2 . . . 1 . 1 . . Coupler Status 6 | . . . . . . . 1 . 1 . 1 . 1 . . . 1 . 1 . . Unauthorized Hacks 12 | . 7 . . . . . . . 1 . . . 1 . 3 . . . . . . Terminals 7 | . 6 . . . . . . . . . . . 1 . . . . . . . . Operators 2 | . 1 . . . . . . . . . . . 1 . . . . . . . . Skim 5 | . 5 . . . . . . . . . . . . . . . . . . . . Fabricators 2 | . . . . . . . . . . . . . . . 2 . . . . . . Report 1 | . . . . . . . . . . . . . . . 1 . . . . . . Liberate 1 | . . . . . . . . . . . . . . . 1 . . . . . . Repair Stations 2 | . . . . . . . . . 1 . . . . . 1 . . . . . . Mechanics 2 | . . . . . . . . . 1 . . . . . 1 . . . . . . Recycling Units 1 | . 1 . . . . . . . . . . . . . . . . . . . . Monitor 1 | . 1 . . . . . . . . . . . . . . . . . . . . Scanalyzers . | . . . . . . . . . . . . . . . . . . . . . . Garrison Access . | . . . . . . . . . . . . . . . . . . . . . . Data Cores Recovered 1 | . . . . . . . 1 . . . . . . . . . . . . . . Used . | . . . . . . . . . . . . . . . . . . . . . . Hacking Detections 46 | . 7 . . . 2 2 1 1 6 2 3 . 5 2 3 . 2 2 2 3 3 Full Trace Events 2 | . . . . . . . . . 1 . . . 1 . . . . . . . . Feedback Events . | . . . . . . . . . . . . . . . . . . . . . . Feedback Blocked . | . . . . . . . . . . . . . . . . . . . . . . Robot Schematics Acquired . | . . . . . . . . . . . . . . . . . . . . . . Robots Built 3 | . . . . . . . . . 3 . . . . . . . . . . . . Authchips . | . . . . . . . . . . . . . . . . . . . . . . Time 67 | . . . . . . . . . 67 . . . . . . . . . . . . Total Robot Build Rating 12 | . . . . . . . . . 12 . . . . . . . . . . . . Part Schematics Acquired 1 | . . . . . . . . . 1 . . . . . . . . . . . . Parts Built . | . . . . . . . . . . . . . . . . . . . . . . Authchips . | . . . . . . . . . . . . . . . . . . . . . . Time . | . . . . . . . . . . . . . . . . . . . . . . Total Part Build Rating . | . . . . . . . . . . . . . . . . . . . . . . Parts Repaired 1 | . . . . . . . . . 1 . . . . . . . . . . . . Time 61 | . . . . . . . . . 61 . . . . . . . . . . . . Parts Recycled . | . . . . . . . . . . . . . . . . . . . . . . Recycled Matter . | . . . . . . . . . . . . . . . . . . . . . . Retrieved Matter . | . . . . . . . . . . . . . . . . . . . . . . Retrieved Components . | . . . . . . . . . . . . . . . . . . . . . . Parts Scanalyzed 1 | . . . . . . . . . 1 . . . . . . . . . . . . Part Schematics Acquired 1 | . . . . . . . . . 1 . . . . . . . . . . . . Parts Damaged 1 | . . . . . . . . . 1 . . . . . . . . . . . . Bothacking | -11 -10 -10 -10 -9 -8 -8 -8 -8 -7 -7 -6 -6 -5 -5 -4 -4 -4 -4 -3 -3 -2 ------------ Run | Yrd Mat Min Exi Min Mat Gar Mat Gar Fac Gar Fac Gar Fac Gar Fac Was Fac Gar Res Gar Res Used RIF Installer 8 | . . . . . . 1 . 1 . 2 . 1 . 1 . . . 1 . 1 . Command Fork 2 | . . . . . . . . 1 . . . . . . . . . 1 . . . Signal Jammer 1 | . . . . . . . . . . . . . . 1 . . . . . . . Zone Cloak 1 | . . . . . . . . . . . . . . . . . . . . 1 . Watcher Feeds 1 | . . . . . . . . . . 1 . . . . . . . . . . . Patrol Navigation 1 | . . . . . . . . . . . . 1 . . . . . . . . . Program Shield 1 | . . . . . . . . . . 1 . . . . . . . . . . . Robots Hacked 40 | . . . . . . 1 2 2 4 6 . 3 . . 3 2 . 4 5 6 2 Non-combat 9 | . . . . . . . . . 1 . . . . . 2 . . . 4 . 2 Combat 31 | . . . . . . 1 2 2 3 6 . 3 . . 1 2 . 4 1 6 . Robot Hacks Applied 43 | . . . . . . 1 2 2 4 6 . 3 . . 3 2 . 4 7 6 3 generate_echo 1 | . . . . . . . . . . . . . . . . . . . 1 . . hold_bot 1 | . . . . . . . . . . . . . . . . . . . 1 . . drop_inventory 1 | . . . . . . . . . . . . . . . . . . . 1 . . purge_threat 1 | . . . . . . . . . . . . . . . . . . . . . 1 mark_security 1 | . . . . . . . . . . . . . . . . . . . . . 1 ignore_targets 2 | . . . . . . . . . . . . . . . . 2 . . . . . spike_heat 1 | . . . . . . . . 1 . . . . . . . . . . . . . overload_power 1 | . . . . . . . . . . . . . . . . . . . 1 . . overwrite_iff 1 | . . . . . . . . . . 1 . . . . . . . . . . . streamctrl_high 2 | . . . . . . . . . 1 1 . . . . . . . . . . . formatsys_low 4 | . . . . . . . . . 1 . . . . . 2 . . . 1 . . formatsys_high 27 | . . . . . . 1 2 1 2 4 . 3 . . 1 . . 4 2 6 1 Relay Couplers Released 98 | . . . . . . 18 . 7 . 13 . 12 . 16 . . . 19 . 13 . Machine Destruction 90 | . . . . . . 14 . 7 . 13 . 12 . 16 . . . 15 . 13 . Programmers 8 | . . . . . . 4 . . . . . . . . . . . 4 . . . Attached 31 | . . . . . . 1 2 . 3 5 . 2 1 1 2 . . 4 3 4 3 Fabnet Peak Effective % . | . . . . . . . . . . . . . . . . . . . . . . Robots Rewired 8 | . . . . . . . . . . . . . . 3 . . . 3 . 2 . Allies Hacked 2 | . . . . . . . . . . . . . . . . . 2 . . . . Hacks Repelled . | . . . . . . . . . . . . . . . . . . . . . . Allies | -11 -10 -10 -10 -9 -8 -8 -8 -8 -7 -7 -6 -6 -5 -5 -4 -4 -4 -4 -3 -3 -2 -------- Run | Yrd Mat Min Exi Min Mat Gar Mat Gar Fac Gar Fac Gar Fac Gar Fac Was Fac Gar Res Gar Res Total Allies 79 | . . 1 . 1 . 1 2 1 7 6 . 4 . 5 3 20 . 12 6 9 1 Largest Group 21 | . . 1 . 1 . 1 2 2 5 3 . 3 . 3 2 21 21 13 6 4 5 Highest-Rated Group 861 | . . 31 . 31 . 21 37 37 120 64 . 93 . 97 188 861 861 619 318 204 230 Highest-Rated Ally 137 | . . 31 . 31 . 21 21 21 30 32 . 32 . 51 137 131 131 116 95 64 64 Total Orders 12 | . . . . . . . . . 1 . . 2 . . 2 2 . 3 1 . 1 STAY 4 | . . . . . . . . . . . . 1 . . 1 1 . 1 . . . FOLLOW 5 | . . . . . . . . . . . . 1 . . 1 1 . 1 1 . . AID 1 | . . . . . . . . . 1 . . . . . . . . . . . . EXPLORE 2 | . . . . . . . . . . . . . . . . . . 1 . . 1 Ally Attacks 588 | . . 6 . 11 . 2 14 12 45 24 . 45 . 43 28 60 72 122 57 29 18 Total Damage 15985 | . . 85 . 230 . 34 263 126 820 414 . 914 . 735 1317 2176 2076 3766 1626 831 572 Kills 99 | . . 1 . 1 . . 7 3 9 2 . 8 . 6 7 2 14 20 11 6 2 Allies Corrupted . | . . . . . . . . . . . . . . . . . . . . . . Allies Melted 1 | . . . . . . . . . . . . . . . . . . 1 . . . Intel | -11 -10 -10 -10 -9 -8 -8 -8 -8 -7 -7 -6 -6 -5 -5 -4 -4 -4 -4 -3 -3 -2 ------- Run | Yrd Mat Min Exi Min Mat Gar Mat Gar Fac Gar Fac Gar Fac Gar Fac Was Fac Gar Res Gar Res Robot Analysis Total 1 | . 1 . . . . . . . . . . . . . . . . . . . . Derelict Logs Recovered 3 | . . 2 . 1 . . . . . . . . . . . . . . . . . Drone Launches 4 | . . . . . . . . . . . . . . . . . . 2 . . 2 Drone Recoveries 3 | . . . . . . . . . . . . . . . . . . 2 . . 1 Exploration | -11 -10 -10 -10 -9 -8 -8 -8 -8 -7 -7 -6 -6 -5 -5 -4 -4 -4 -4 -3 -3 -2 ------------- Run | Yrd Mat Min Exi Min Mat Gar Mat Gar Fac Gar Fac Gar Fac Gar Fac Was Fac Gar Res Gar Res Turns Passed 19199 | 120 1196 458 370 490 512 1322 446 434 1791 1283 290 1148 1401 1570 740 676 498 1726 306 1572 850 Spaces Moved 8950 | 55 608 245 227 276 243 567 220 205 593 452 162 450 714 867 384 459 328 633 100 727 435 Core 85 | 3 . . . . . . . . . . . . . . . . . . . . 82 Treads 7140 | 52 608 245 227 276 243 567 220 205 593 452 162 424 714 445 . . . 541 100 727 339 Legs 1711 | . . . . . . . . . . . . 26 . 422 384 459 328 92 . . . Wheels . | . . . . . . . . . . . . . . . . . . . . . . Hover 1 | . . . . . . . . . . . . . . . . . . . . . 1 Flight 13 | . . . . . . . . . . . . . . . . . . . . . 13 Fastest Speed 16 | 50 160 160 160 160 160 160 160 160 160 160 160 160 160 100 102 105 108 108 160 160 16 Average Speed 165 | 154 160 160 160 160 160 160 160 188 221 230 172 206 160 139 139 107 112 210 160 160 134 Slowest Speed 400 | 160 160 160 160 160 160 240 160 240 240 320 240 400 240 240 172 108 178 232 160 160 240 Overloaded Moves 4 | . . . . . . . . . . . . . . . . . . . . . 4 Propulsion Burnouts . | . . . . . . . . . . . . . . . . . . . . . . Robots Hopped . | . . . . . . . . . . . . . . . . . . . . . . Cave-ins Triggered . | . . . . . . . . . . . . . . . . . . . . . . Exploration Rate (%) 41 | 4 84 38 59 69 13 44 20 35 16 79 5 42 23 86 15 96 12 61 4 93 19 Regions Visited 21 Branch Regions 3 Pre-discovered Areas 2 | . . . 1 1 . . . . . . . . . . . . . . . . . Known Exits Taken 8 | . . . . 1 1 . 1 . 1 . 1 . 1 . . . 1 . 1 . . Unknown Exits Taken 4 | 1 1 1 1 . . . . . . . . . . . . . . . . . . Scrap Searched 2 | . . 2 . . . . . . . . . . . . . . . . . . . Spaces Dug 161 | . 20 2 . . . . . . 27 . 1 2 4 6 5 . 89 1 . 4 . Terrain Destroyed 689 | . 35 2 . 6 10 40 1 . 71 39 1 8 34 187 52 3 150 20 8 22 . Melee 19 | . 7 2 . . . . . . . . . 2 3 5 . . . . . . . Projectile 158 | . 13 . . . . 7 1 . 2 1 1 . 5 12 52 3 18 14 8 21 . AOE 509 | . 15 . . 6 10 33 . . 69 38 . 6 24 170 . . 132 6 . . . Terrain Rammed . | . . . . . . . . . . . . . . . . . . . . . . Walls Destroyed . | . . . . . . . . . . . . . . . . . . . . . . Machines Disabled . | . . . . . . . . . . . . . . . . . . . . . . Actions | -11 -10 -10 -10 -9 -8 -8 -8 -8 -7 -7 -6 -6 -5 -5 -4 -4 -4 -4 -3 -3 -2 --------- Run | Yrd Mat Min Exi Min Mat Gar Mat Gar Fac Gar Fac Gar Fac Gar Fac Was Fac Gar Res Gar Res Total 11911 | 74 724 286 235 317 332 829 299 235 951 611 171 594 901 1106 510 636 407 931 180 987 595 Wait 1158 | 1 27 21 . 38 60 102 31 4 244 41 . 37 81 20 28 138 34 104 18 98 31 Move 8932 | 54 607 244 226 275 243 566 219 204 592 451 161 449 714 866 384 458 327 632 99 726 435 Hop . | . . . . . . . . . . . . . . . . . . . . . . Pick Up 200 | 4 14 3 2 . 4 24 7 3 8 15 1 10 15 25 7 4 5 23 2 14 10 Fast Attach 135 | 6 3 . . . . 4 3 1 8 12 2 7 11 27 5 9 1 6 1 12 17 Attach 105 | . . . 1 . 4 9 1 2 5 6 1 3 7 14 5 2 4 13 5 8 15 Detach 13 | . . . 1 . . 2 . . 1 . . . . . . 1 . 5 1 . 2 Swap 197 | . 9 3 2 . 2 13 12 3 16 9 2 15 13 11 19 6 3 18 16 16 9 Drop 256 | . 9 2 3 . 2 15 11 2 11 10 3 16 19 52 12 14 5 27 1 21 21 Fire 784 | 9 46 9 . 4 17 81 15 16 58 57 1 46 37 72 50 4 28 55 37 91 51 Melee 47 | . 9 4 . . . 12 . . 7 . . 4 4 7 . . . . . . . Ram 4 | . . . . . . . . . . . . . . . . . . . . . 4 Kick . | . . . . . . . . . . . . . . . . . . . . . . Crush . | . . . . . . . . . . . . . . . . . . . . . . Escape Stasis 30 | . . . . . . 1 . . . 9 . 6 . . . . . 14 . . . Rewire 50 | . . . . . . . . . 1 1 . 1 . 12 . . . 34 . 1 . Trap . | . . . . . . . . . . . . . . . . . . . . . . Miscellaneous . | . . . . . . . . . . . . . . . . . . . . . . Route ------- -11/Scrapyard -10/Materials (discovered 5 exits: *Mat x3 / *Min / Sub) -10/Mines (discovered 4 exits: Mat x2 / *Exi / Sub) -10/Exiles -9/Mines (discovered 2 exits: *Mat x2) -8/Materials (discovered 2 exits: Fac / Gar) -8/Garrison (discovered 2 exits: *Mat x2) -8/Materials -8/Garrison -7/Factory -7/Garrison (discovered 2 exits: *Fac x2) -6/Factory -6/Garrison -5/Factory (discovered 5 exits: *Fac x2 / [*Upp] / Gar / Gar) -5/Garrison (discovered 4 exits: *Fac x3 / [*Fac]) -4/Factory -4/Waste -4/Factory (discovered 2 exits: [*Upp] / Gar) -4/Garrison (discovered 3 exits: *Res x3) -3/Research (discovered 2 exits: *Arm / Gar) -3/Garrison (discovered 3 exits: *Res x3) -2/Research (discovered 2 exits: Qua x2) History --------- Turn | Location | Event 9 | -11/Scrapyard | Discovered new exit (range 15) 121 | -11/Scrapyard | Entered Materials 312 | -10/Materials | Build established: Mutant 432 | -10/Materials | Discovered new exit (range 13) 443 | -10/Materials | Discovered new exit (range 16) 755 | -10/Materials | Discovered new exit (range 15) 939 | -10/Materials | Identified exit to Materials 1083 | -10/Materials | Identified exit to Subcaves 1083 | -10/Materials | Learned location of 1 exit from Materials 1245 | -10/Materials | Learned location of 1 exit from Recycling 1309 | -10/Materials | Learned location of 1 exit from Recycling 1317 | -10/Materials | Entered Mines 1363 | -10/Mines | Learned Materials emergency access door positions 1387 | -10/Mines | A weapon hastily lodged in a ceiling crevice suddenly fell to the ground 1430 | -10/Mines | Learned Materials terminal intel 1617 | -10/Mines | Met a Derelict shopkeep closing up shop 1619 | -10/Mines | Assembled infested the area 1649 | -10/Mines | Met a Derelict testing a Signal Generator 1699 | -10/Mines | Met 8R-AWN 1726 | -10/Mines | Received a Rocket Launcher from a helpful Derelict 1769 | -10/Mines | Discovered new exit (range 5) 1775 | -10/Mines | Entered Exiles 1814 | -10/Exiles | Welcomed by 8R-AWN 1844 | -10/Exiles | Met EX-HEX 1890 | -10/Exiles | Met EX-BIN 1908 | -10/Exiles | Aligned with FarCom system 1909 | -10/Exiles | Given EX-Vault access code 1962 | -10/Exiles | Opened EX-Vault 1970 | -10/Exiles | Found 0b10 Alert Chip 1975 | -10/Exiles | Found AWS/Gauss 2012 | -10/Exiles | Warned to stay clear of 0b10 Research branches 2070 | -10/Exiles | Learned location of Zion (-6) 2128 | -10/Exiles | Discovered new exit (range 10) 2145 | -10/Exiles | Stole two prototypes: 0b10 Alert Chip, AWS/Gauss 2145 | -10/Exiles | Entered Mines 2146 | -9/Mines | Identified exit to Materials 2148 | -9/Mines | Received a Mining Laser from a helpful Derelict 2635 | -9/Mines | Entered Materials 2635 | -8/Materials | Evolved 4 slots: Propulsion x2, Weapon x2 2636 | -8/Materials | Identified exit to Factory 2638 | -8/Materials | Loaded intel: 12 terminal locations 2901 | -8/Materials | Garrison activated, responded to threat 2921 | -8/Materials | Build established: Skirmisher 3147 | -8/Materials | Identified exit to Garrison 3147 | -8/Materials | Entered Garrison 3148 | -8/Garrison | Identified exit to Materials 3149 | -8/Garrison | Triggered checkpoint 3301 | -8/Garrison | Triggered checkpoint 3371 | -8/Garrison | Triggered checkpoint 3414 | -8/Garrison | Garrison Relay disabled 3533 | -8/Garrison | Spotted B-75 Beast 3537 | -8/Garrison | Garrison Relay disabled 3578 | -8/Garrison | Lost 4 parts (3n1w) 3693 | -8/Garrison | Installed Relay Interface Framework 3970 | -8/Garrison | Triggered checkpoint 4189 | -8/Garrison | Discovered exit to Materials (range 12) 4203 | -8/Garrison | Triggered checkpoint 4253 | -8/Garrison | Garrison Relay disabled 4263 | -8/Garrison | Learned Materials security intel 4412 | -8/Garrison | Build established: Bothacker-Skirmisher 4469 | -8/Garrison | Entered Materials 4753 | -8/Materials | Garrison activated, responded to threat 4910 | -8/Materials | Identified exit to Garrison 4915 | -8/Materials | Entered Garrison 4915 | -8/Garrison | Accompanied by 2 allies 4983 | -8/Garrison | Triggered checkpoint 4993 | -8/Garrison | Triggered checkpoint 5049 | -8/Garrison | Core integrity fell below 50% 5085 | -8/Garrison | Triggered checkpoint 5092 | -8/Garrison | Learned Factory security intel 5111 | -8/Garrison | Garrison Relay disabled 5194 | -8/Garrison | Discovered exit to Factory (range 14) 5235 | -8/Garrison | Garrison Relay disabled 5270 | -8/Garrison | Expanded RIF knowledge: Command Fork 5349 | -8/Garrison | Entered Factory 5349 | -7/Factory | Accompanied by 1 ally 5349 | -7/Factory | Evolved 2 slots: Utility x2 5351 | -7/Factory | FarCom data flow suspended 5707 | -7/Factory | Fabricated L-41 Fighter (x3) 5767 | -7/Factory | Build established: Bothacker-Tank 6188 | -7/Factory | Repaired Broken Remote Datajack 6582 | -7/Factory | Assembled infested ambush trap array 6755 | -7/Factory | Lost 6 allies 7016 | -7/Factory | Cargo convoy interrupted 7137 | -7/Factory | Identified exit to Garrison 7140 | -7/Factory | Entered Garrison 7169 | -7/Garrison | Lost 5 parts (1n1u3w) 7208 | -7/Garrison | Triggered checkpoint 7225 | -7/Garrison | Garrison Relay disabled 7320 | -7/Garrison | Expanded RIF knowledge: Watcher Feeds 7415 | -7/Garrison | Triggered checkpoint 7535 | -7/Garrison | Build established: Bothacker-Gunner 7539 | -7/Garrison | Triggered checkpoint 7540 | -7/Garrison | Triggered checkpoint 7574 | -7/Garrison | Triggered checkpoint 7592 | -7/Garrison | Lost 3 parts (1p2n) 7609 | -7/Garrison | Lost 4 allies 7665 | -7/Garrison | Destroyed 9 combat bots 7888 | -7/Garrison | Discovered new exit (range 4) 7921 | -7/Garrison | Triggered checkpoint 7968 | -7/Garrison | Garrison Relay disabled 8252 | -7/Garrison | Garrison Relay disabled 8273 | -7/Garrison | Triggered checkpoint 8365 | -7/Garrison | Expanded RIF knowledge: Program Shield 8417 | -7/Garrison | Discovered new exit (range 3) 8423 | -7/Garrison | Entered Factory 8423 | -6/Factory | Evolved 2 slots: Utility x2 8464 | -6/Factory | Identified exit to Garrison 8713 | -6/Factory | Entered Garrison 8781 | -6/Garrison | Triggered checkpoint 8784 | -6/Garrison | Build established: Bothacker-Tank 8795 | -6/Garrison | Triggered checkpoint 8929 | -6/Garrison | Triggered checkpoint 9059 | -6/Garrison | Garrison Relay disabled 9237 | -6/Garrison | Discovered new exit (range 10) 9267 | -6/Garrison | Triggered checkpoint 9295 | -6/Garrison | Garrison Relay disabled 9437 | -6/Garrison | Expanded RIF knowledge: Patrol Navigation 9497 | -6/Garrison | Triggered checkpoint 9505 | -6/Garrison | Lost 3 parts (2u1w) 9622 | -6/Garrison | Lost 3 allies 9689 | -6/Garrison | Triggered checkpoint 9699 | -6/Garrison | Garrison Relay disabled 9815 | -6/Garrison | Build established: Scavenger-Gunner 9835 | -6/Garrison | Spotted B-75 Beast 9861 | -6/Garrison | Entered Factory 9861 | -5/Factory | Evolved 2 slots: Utility x2 10065 | -5/Factory | Discovered new exit (range 5) 10200 | -5/Factory | Discovered new exit (range 38) 10230 | -5/Factory | Garrison activated, responded to threat 10414 | -5/Factory | Identified exit to Garrison 10549 | -5/Factory | Discovered new exit (range 21) 10601 | -5/Factory | Build established: Scavenger-Skirmisher 11054 | -5/Factory | Build established: Scavenger-Gunner 11262 | -5/Factory | Identified exit to Garrison 11262 | -5/Factory | Entered Garrison 11262 | -5/Garrison | Warlord forces raided the area 11264 | -5/Garrison | Triggered checkpoint 11312 | -5/Garrison | Garrison Relay disabled 11313 | -5/Garrison | Lost 7 allies 11331 | -5/Garrison | Triggered checkpoint 11380 | -5/Garrison | Triggered checkpoint 11386 | -5/Garrison | Triggered checkpoint 11417 | -5/Garrison | Build established: Gunner 11417 | -5/Garrison | Lost 3 allies 11418 | -5/Garrison | Triggered checkpoint 11457 | -5/Garrison | Discovered new exit (range 6) 11466 | -5/Garrison | Lost 3 allies 11595 | -5/Garrison | Warlord forces retreated 11611 | -5/Garrison | Spotted B-75 Beast 11624 | -5/Garrison | Destroyed B-75 Beast 11745 | -5/Garrison | Build established: Scavenger-Gunner 11839 | -5/Garrison | Garrison Relay disabled 11885 | -5/Garrison | Spotted B-86 Titan 11888 | -5/Garrison | Triggered checkpoint 11946 | -5/Garrison | Discovered new exit (range 3) 12056 | -5/Garrison | Triggered checkpoint 12089 | -5/Garrison | Destroyed 8 combat bots 12144 | -5/Garrison | Triggered checkpoint 12215 | -5/Garrison | Phase Generator disabled 12230 | -5/Garrison | Spotted Executioner 12234 | -5/Garrison | Spotted Executioner 12268 | -5/Garrison | Destroyed Executioner 12273 | -5/Garrison | Destroyed Executioner 12310 | -5/Garrison | Found Prototype Device 12310 | -5/Garrison | Identified Adv. Kinecellerator 12312 | -5/Garrison | Found Prototype Processor 12312 | -5/Garrison | Identified Exp. Core Analyzer 12317 | -5/Garrison | Found Prototype Processor 12317 | -5/Garrison | Identified Exp. Targeting Computer 12360 | -5/Garrison | Rescued a captive Derelict 12362 | -5/Garrison | Rescued a captive Derelict 12420 | -5/Garrison | H-XX Assembler disabled 12553 | -5/Garrison | Garrison Relay disabled 12568 | -5/Garrison | Discovered new exit (range 8) 12662 | -5/Garrison | Discovered new exit (range 12) 12684 | -5/Garrison | Triggered checkpoint 12704 | -5/Garrison | Garrison Relay disabled 12771 | -5/Garrison | Expanded RIF knowledge: Signal Jamming 12832 | -5/Garrison | Entered Factory 12832 | -4/Factory | Accompanied by 1 ally 12832 | -4/Factory | Evolved 2 slots: Power x1, Propulsion x1 13332 | -4/Factory | First assault squad dispatched 13535 | -4/Factory | AWS/Gauss suddenly broke down 13572 | -4/Factory | Sucked down chute 13572 | -4/Factory | Entered Waste 13573 | -4/Waste | Met a frightened Derelict 13587 | -4/Waste | 1 allies followed down the chute 13608 | -4/Waste | Spotted C-40 Crusher 13661 | -4/Waste | Allies destroyed C-40 Crusher 13662 | -4/Waste | Spotted C-40 Crusher 13666 | -4/Waste | Destroyed C-40 Crusher 13742 | -4/Waste | Warlord forces began an assault 13794 | -4/Waste | Spotted C-40 Crusher 13811 | -4/Waste | Allies destroyed C-40 Crusher 13848 | -4/Waste | Spotted C-40 Crusher 13851 | -4/Waste | Destroyed C-40 Crusher 14123 | -4/Waste | Discovered new exit (range 11) 14140 | -4/Waste | Found Broken Quantum Capacitor 14248 | -4/Waste | Entered Factory 14248 | -4/Factory | Accompanied by 21 allies 14496 | -4/Factory | Lost 3 allies 14585 | -4/Factory | Discovered new exit (range 12) 14589 | -4/Factory | Lost 3 allies 14727 | -4/Factory | Identified exit to Garrison 14746 | -4/Factory | Entered Garrison 14746 | -4/Garrison | Accompanied by 12 allies 14780 | -4/Garrison | Expanded RIF knowledge: Command Fork 14853 | -4/Garrison | Build established: Scavenger-Skirmisher 14872 | -4/Garrison | Triggered checkpoint 14874 | -4/Garrison | Spotted B-86 Titan 14879 | -4/Garrison | Assimilated Titan 7a with formatsys_high 14882 | -4/Garrison | Triggered checkpoint 14885 | -4/Garrison | Triggered checkpoint 14889 | -4/Garrison | AWS/Gauss suddenly broke down 14894 | -4/Garrison | AWS/Gauss suddenly broke down 14897 | -4/Garrison | Triggered checkpoint 14969 | -4/Garrison | Lost 13 allies 15028 | -4/Garrison | Triggered checkpoint 15028 | -4/Garrison | Garrison Relay disabled 15313 | -4/Garrison | Discovered new exit (range 12) 15366 | -4/Garrison | Triggered checkpoint 15413 | -4/Garrison | Build established: Scavenger-Gunner 15422 | -4/Garrison | Triggered checkpoint 15445 | -4/Garrison | Garrison Relay disabled 15482 | -4/Garrison | Discovered new exit (range 56) 15482 | -4/Garrison | Discovered new exit (range 12) 15482 | -4/Garrison | Discovered new exit (range 68) 15512 | -4/Garrison | Found embedded Infiltrators 15838 | -4/Garrison | Triggered checkpoint 15884 | -4/Garrison | Garrison Relay disabled 15975 | -4/Garrison | Spotted B-86 Titan 16000 | -4/Garrison | Allies destroyed B-86 Titan 16022 | -4/Garrison | Found Relay Coupler [Proto] 16025 | -4/Garrison | Found Relay Coupler [Proto] 16030 | -4/Garrison | Lost 4 allies 16037 | -4/Garrison | Found Relay Coupler [Proto] 16074 | -4/Garrison | Build established: Botlord-Gunner 16300 | -4/Garrison | Spotted B-86 Titan 16472 | -4/Garrison | Entered Research 16472 | -3/Research | Accompanied by 6 allies 16472 | -3/Research | Evolved 2 slots: Propulsion x1, Utility x1 16578 | -3/Research | Lost 6 allies 16636 | -3/Research | Destroyed 8 combat bots 16648 | -3/Research | Discovered new exit (range 12) 16669 | -3/Research | Identified exit to Garrison 16737 | -3/Research | P-80 Master assimilated allied Conveyor 8b 16758 | -3/Research | Identified exit to Armory 16778 | -3/Research | Entered Garrison 16863 | -3/Garrison | Triggered checkpoint 16911 | -3/Garrison | Garrison Relay disabled 17033 | -3/Garrison | Spotted B-86 Titan 17036 | -3/Garrison | Triggered checkpoint 17069 | -3/Garrison | Destroyed B-86 Titan 17098 | -3/Garrison | Lost 3 allies 17310 | -3/Garrison | Discovered new exit (range 11) 17377 | -3/Garrison | Triggered checkpoint 17428 | -3/Garrison | Garrison Relay disabled 17588 | -3/Garrison | Triggered checkpoint 17588 | -3/Garrison | Triggered checkpoint 17729 | -3/Garrison | Garrison Relay disabled 17798 | -3/Garrison | Build established: Bothacker-Tank 17846 | -3/Garrison | Triggered checkpoint 17863 | -3/Garrison | Discovered new exit (range 11) 18042 | -3/Garrison | Triggered checkpoint 18152 | -3/Garrison | Garrison Relay disabled 18185 | -3/Garrison | Expanded RIF knowledge: Zone Cloak 18246 | -3/Garrison | Triggered checkpoint 18267 | -3/Garrison | Discovered new exit (range 11) 18309 | -3/Garrison | Build established: Scavenger-Gunner 18338 | -3/Garrison | Discovered new exit (range 80) 18338 | -3/Garrison | Discovered new exit (range 106) 18338 | -3/Garrison | Discovered new exit (range 7) 18350 | -3/Garrison | Entered Research 18350 | -2/Research | Accompanied by 4 allies 18350 | -2/Research | Evolved 2 slots: Utility x2 18402 | -2/Research | Identified exit to Quarantine 18470 | -2/Research | Spotted B-90 Cyclops 18600 | -2/Research | First assault squad dispatched 18745 | -2/Research | Lost 5 allies 18835 | -2/Research | Destroyed 7 combat bots 18898 | -2/Research | Lost 3 parts (2u1w) 19109 | -2/Research | System corruption reached 10% 19152 | -2/Research | Core integrity fell below 50% 19191 | -2/Research | Core integrity fell below 20% 19195 | -2/Research | Spotted B-90 Cyclops 19200 | -2/Research | Destroyed by H-88 Terminator with KE Penetrator Last Messages --------------- 19178_ Acquired Gyrokinetic Inverter. 19181_ Slammed into P-80 Master. 19183_ Penetrated by Slug. 19187_ Slug penetrates Wall. 19187_ Penetrated by Slug. 19190_ Slug penetrates Wall. 19190_ Penetrated by Slug. 19191_ Slug penetrates H-88 Terminator. 19192_ Slug penetrates P-80 Master. 19192_ Penetrated by Slug. 19193_ Slug penetrates Terminal. 19194_ Penetrated by Slug. 19194_ Gyrokinetic Inverter destroyed. 19194_ Penetrated by Slug. 19196_ System corrupted: Matter fused (-10). 19196_ Penetrated by Slug. 19196_ Adv. Targeting Computer destroyed. 19197_ Penetrated by Slug. 19197_ Relay Coupler [Proto] destroyed. 19200_ Penetrated by Slug. Map ----- +----------------------------------------------------+ | ?????????????????????????????????????????????????? | | ?????????????????????????????????????????????????? | | ?????????????????????????????????????????????????? | | ?????????????????????????????????????????????????? | | ?????????????????????????????????????????????????? | | ?????????????????????????????????????????????????? | | ???????????????? ??????????????????????????????? | | ??????????????# ??????????????????????????????? | | ?????????????## #########?????????????????????? | | ?????????????? ??????????????????????? | | ??????????????? ?????????????????????? | | ??????????????? ?????????????????????? | | ???????????????? ??? ?????????????????? | | ????????????????? ?? #???????????????? | | ????????????????? #???????????????? | | ??????????????????]] """ #???????????????? | | ???????????????????] """ #???????????????? | | ??????????????????? """ #???????????????? | | ???????????????????? +???????????????? | | ????????????????????? #???????????????? | | ?????????????????????# #???????????????? | | ?????????????????????# """ #???????????????? | | ?????????????????????# """ #???????????????? | | ?????????????????????# """ #???????????????? | | ?????????????????????+ #???????????????? | | ?????????????????????# @ #???????????????? | | ?????##########??????# #???????????????? | | ?????# #??????# #???????????????? | | ?????# #??????# "" "" #???????????????? | | ?????# "" #??????# ""T"" #???????????????? | | ?????# "" #??????# """ #???????????????? | | ?????# "T #??????# #???????????????? | | #????# "" #??????# #???????????????? | | #????# "" #??????# k #???????????????? | | #?????? #??????# ##;BB###???????????????? | | #???????? ???????# #?#BB#?????????????????? | | ###########"########## #??###?????????????????? | | # #??????????????????????? | | + #??????????????????????? | | # ????????????? | | # h ##########?????????????? | | # #################### #??????????????????????? | | # #??????????????????# #??????????????????????? | | # #??#########???????# #??????????????????????? | | # #??#"""S"""#???????# #??????????????????????? | | # #?##""" """#####???# #??????????????????????? | | # ### #???# #??????????????????????? | | # | #???# #??????????????????????? | | # #???# #??????????????????????? | | + #???# #??????????????????????? | +----------------------------------------------------+ Best States ------------- Heat Dissipation 80 Energy Generation 45 Energy Capacity 600 Matter Stores 300 Matter Capacity 300 Sight Range 23 Terrain Scan Range 16 Terrain Scan Density 210 Jamming Range 14 Additional Mass Support 12 EM Shielding 3 Armor Coverage 450 Resistance: EM 25 Phase Shifting 15 Evasion (%) 65 Targeting Accuracy 13 Target Analysis 8 Core Analysis 8 Armor Integrity Analysis 40 Recoil Reduction 6 Kinecelleration 50 Offensive Hacking 12 Defensive Hacking 12 Relay Coupler Types 2 Relay Coupler Value 41 Item Schematics ----------------- Remote Datajack | -7/Factory | Scanalyzed Robot Schematics ------------------ None Fabricated ------------ L-41 Fighter | x3 | -7/Factory | Preloaded Alien Tech Used ----------------- None Achievements -------------- None Challenges ------------ None Game ------ Seed MultinovaEncryptedBay Manual? 0 Play Time 04:22:34 Cumulative 107.5 hours Start 2024.09.19 @ 14:50:40 End 2024.09.20 @ 00:23:22 Sessions 3 Manual Loads 0 Difficulty Rogue Special Mode None Game No. 56 Rogue 56 Adventurer 0 Explorer 0 Win Type - Total 0 Types 0/0/0/0/0/0/0/0/0 Lore% 47 Gallery% 64 Achievement% 53 Wizard Run 0 Options --------- Layout 0 ASCII 0 Keyboard 0 Movement Mouse Keybinds 0 Fullscreen 1 Font 24/Smallcaps Map View 183x50 Zoom Use 0% Tactical HUD 1 Map Filters NONE Filters NONE Steam 0 RUN: d150187a-9ab0-4aad-9265-1b6ed8dbeeef